bitfinex/quotes_ETHUSD_20240603
["timestamp","ask_amount","ask_price","bid_price","bid_amount"]
[1717423827706,0.56506519,3826.3,3825.8,2.6138]
[1717423827862,0.56506519,3826.2,3825.8,2.6138]
[1717423828067,0.56506519,3826.1,3825.8,2.6138]
[1717423828405,0.56506519,3826.0,3825.8,2.6138]
[1717423828605,0.56506519,3825.9,3825.4,2.6141]
[1717423828807,0.56506519,3825.8,3825.4,2.6141]
[1717423829017,0.56506519,3825.7,3825.4,2.6141]
[1717423829297,0.54248413,3826.4,3825.4,2.6141]
[1717423829298,0.56506519,3825.6,3825.4,2.6141]
[1717423829659,0.56506519,3825.5,3825.4,2.6141]
[1717423832714,0.56506519,3825.5,3825.4,3.06221]
[1717423832943,0.56506519,3825.5,3825.4,3.61221]
[1717423833235,2.12574199,3825.5,3825.4,3.61221]
[1717423833574,1.5606768,3825.5,3825.4,6.61221]
[1717423833779,0.54248413,3826.6,3826.2,2.61353]
[1717423833980,0.56500003,3826.4,3826.2,2.61353]
[1717423834303,0.56500003,3826.3,3826.2,2.61353]
[1717423835479,0.56500003,3826.7,3825.9,1.867]
[1717423835710,0.54248413,3826.8,3826.6,2.61328]
[1717423835919,0.56495078,3826.7,3826.6,2.61328]
[1717423837030,0.56495078,3826.8,3826.6,2.61328]
[1717423837232,0.56495078,3826.9,3826.8,2.61314]
[1717423837568,1.56102819,3827.1,3826.8,3.16314]
[1717423837744,1.56102819,3827.2,3826.8,2.61314]
[1717423838063,1.56102819,3826.9,3826.8,2.61314]
[1717423838211,0.26683355,3826.9,3826.8,2.61314]
[1717423838417,0.54248413,3826.9,3826.8,2.61314]
[1717423839114,1.10730726,3827.0,3826.8,4.48014]
[1717423839458,0.56482313,3826.9,3826.8,4.48014]
[1717423839619,1.56097275,3826.9,3826.8,4.48014]
[1717423840155,0.56482313,3826.9,3826.8,4.48014]
[1717423840315,1.56097275,3827.0,3826.8,4.48014]
[1717423841562,2.10345688,3827.1,3826.8,4.48014]
[1717423842065,2.10345688,3827.2,3826.8,4.928154]
[1717423842245,7.41,3828.0,3826.8,4.928154]
[1717423842246,2.10360163,3827.3,3827.2,2.61287]
[1717423842419,0.56485847,3827.4,3827.2,4.47987]
[1717423842781,2.10360163,3827.6,3827.2,4.47987]
[1717423842978,1.5611175,3827.6,3827.5,2.61262]
[1717423843122,0.56482433,3827.6,3827.5,2.61262]
[1717423843451,0.54248413,3827.8,3827.5,2.61262]
[1717423843661,2.10360163,3828.0,3827.7,2.61253]
[1717423844238,2.10360163,3828.1,3827.7,2.61253]
[1717423844445,0.29173278,3828.0,3827.7,2.61253]
[1717423844970,2.10422932,3828.1,3827.7,2.61253]
[1717423845474,0.56477071,3828.2,3827.7,2.61253]
[1717423845475,2.66900003,3828.2,3827.7,2.61253]
[1717423845660,1.56174519,3828.2,3827.7,2.61253]
[1717423845973,2.10422932,3828.2,3827.7,2.61253]
[1717423846273,1.56174519,3828.2,3827.7,2.61253]
[1717423846434,0.2669,3828.1,3827.7,2.61253]
[1717423846829,1.82864519,3828.1,3827.7,2.61253]
[1717423847236,0.2669,3828.1,3827.7,2.61253]
[1717423848145,1.56174519,3828.2,3828.1,2.61226]
[1717423849132,0.54248413,3828.4,3828.1,2.61226]
[1717423849328,0.56477128,3828.4,3828.1,2.61226]
[1717423849533,0.54248413,3828.4,3827.7,2.61248]
[1717423849893,1.56177721,3828.1,3827.7,2.61248]
[1717423850171,1.56177721,3828.0,3827.7,2.61248]
[1717423850375,1.77220334,3828.1,3827.7,2.61248]
[1717423850873,1.56177721,3828.0,3827.7,2.61248]
[1717423851252,2.12664229,3827.9,3827.7,2.61248]
[1717423851583,2.12664229,3827.8,3827.7,2.61248]
[1717423851733,1.56186127,3827.8,3827.7,2.61248]
[1717423851933,0.56478102,3827.8,3827.3,2.61276]
[1717423852181,1.56214289,3827.6,3827.3,2.61276]
[1717423852672,2.12692391,3827.5,3827.3,2.61276]
[1717423852873,2.3116,3828.0,3826.7,3.0]
[1717423852874,0.77747341,3827.4,3826.9,2.61302]
[1717423853033,1.56199811,3827.1,3826.9,2.61302]
[1717423853232,0.56478102,3827.8,3826.9,2.61302]
[1717423853233,0.56478102,3827.0,3826.9,2.61302]
[1717423853469,2.61268,3827.5,3826.5,2.6133]
[1717423853629,1.56184068,3826.6,3826.5,2.6133]
[1717423854034,0.54248413,3827.2,3826.5,2.6133]
[1717423854261,0.56478102,3827.1,3826.5,2.6133]
[1717423854449,0.56478102,3827.0,3826.5,2.6133]
[1717423854654,0.56478102,3827.1,3826.5,2.6133]
[1717423854875,0.56478102,3827.0,3826.5,2.6133]
[1717423855080,0.56478102,3826.9,3826.1,2.61359]
[1717423855269,1.56177708,3826.3,3826.1,2.61359]
[1717423855600,0.56478102,3826.2,3825.7,2.61384]
[1717423855941,1.10726515,3826.5,3825.7,2.61384]
[1717423856178,0.56478102,3826.4,3826.0,2.61369]
[1717423856537,0.56478102,3826.5,3826.0,2.61369]
[1717423856882,0.56478102,3826.4,3826.0,2.61369]
[1717423857046,0.56478102,3826.5,3826.0,2.61369]
[1717423857239,0.56478102,3826.4,3826.0,2.61369]
[1717423857439,0.56478102,3826.5,3826.0,2.61369]
[1717423857640,0.56478102,3826.4,3826.0,2.61369]
[1717423857840,0.56478102,3826.5,3826.0,2.61369]
[1717423858073,0.56478102,3826.4,3826.0,2.61369]
[1717423858246,1.10726515,3826.5,3826.0,2.61369]
[1717423858451,0.56478102,3826.5,3826.0,2.61369]
[1717423858648,0.88909408,3826.5,3825.6,2.61392]
[1717423858853,1.56159261,3825.9,3825.6,2.61392]
[1717423859049,2.12637363,3825.8,3825.6,2.61392]
[1717423859252,2.12637363,3825.7,3825.6,2.61392]
[1717423859447,0.56478102,3826.2,3825.6,2.61392]
[1717423859651,0.56478102,3826.1,3825.6,2.61392]
[1717423860252,0.56478102,3826.0,3825.6,2.61392]
[1717423860578,0.22453044,3826.2,3825.6,2.61392]
[1717423860579,0.56478102,3826.1,3825.6,2.61392]
[1717423860966,0.56478102,3826.0,3825.6,2.61392]
[1717423861147,0.56478102,3826.1,3825.6,2.875312]
[1717423861352,1.56152273,3825.7,3825.6,2.875312]
[1717423861547,1.56152273,3825.7,3825.6,2.61392]
[1717423862574,0.56478102,3825.7,3825.6,2.61392]
[1717423862895,0.56478102,3826.1,3825.6,2.61392]
[1717423863072,0.56478102,3826.0,3825.6,2.61392]
[1717423863271,0.56478102,3825.9,3825.6,2.61392]
[1717423863473,1.56145516,3825.7,3825.6,2.61392]
[1717423863700,1.56145516,3825.7,3825.6,2.875312]
[1717423863884,0.56478102,3826.2,3825.8,2.61383]
[1717423863885,1.56145516,3826.0,3825.8,2.61383]
[1717423865455,1.56145516,3825.9,3825.8,2.61383]
[1717423865685,1.10749833,3826.3,3825.8,2.61383]
[1717423865851,0.73460658,3826.3,3825.8,2.61383]
[1717423866054,1.29962078,3826.3,3825.8,2.61383]
[1717423866250,0.73460658,3826.3,3825.8,2.61383]
[1717423866450,0.54248413,3826.1,3825.8,2.61383]
[1717423866872,1.10754917,3826.1,3825.8,2.61383]
[1717423867184,1.10754917,3826.0,3825.8,2.61383]
[1717423867485,1.56137507,3826.1,3825.8,3.061913]
[1717423867849,0.56501022,3826.1,3825.8,3.061913]
[1717423868049,1.56137507,3826.3,3826.2,2.61355]
[1717423868275,2.12636007,3826.3,3826.2,2.61355]
[1717423868464,0.564985,3826.3,3826.2,2.61355]
[1717423868677,0.5649751,3826.3,3826.2,2.61355]
[1717423869161,2.10400111,3826.4,3826.2,2.61355]
[1717423869368,0.54248413,3826.3,3826.2,2.61355]
[1717423869680,0.54248413,3826.3,3825.8,0.448083]
[1717423869681,1.90978722,3826.3,3825.8,2.6138]
[1717423869880,1.56145551,3825.9,3825.8,2.6138]
[1717423870406,0.8137262,3826.0,3825.8,2.6138]
[1717423870407,2.37518171,3826.0,3825.8,2.6138]
[1717423870702,2.94015681,3826.0,3825.8,2.6138]
[1717423870907,2.12643061,3825.9,3825.8,2.6138]
[1717423871306,2.94050484,3825.9,3825.8,2.6138]
[1717423872468,1.37879824,3825.9,3825.8,2.6138]
[1717423872668,0.8137262,3825.9,3825.8,2.6138]
[1717423872884,2.94050484,3826.0,3825.8,2.6138]
[1717423873103,2.94050484,3826.0,3825.5,7.41]
[1717423873403,0.54319641,3825.7,3825.5,7.41]
[1717423874610,0.54319641,3825.7,3825.4,2.61406]
[1717423875320,0.54319641,3825.7,3825.4,3.062166]
[1717423875623,0.8137262,3825.9,3825.8,2.61383]
[1717423875624,0.54319641,3825.9,3825.8,2.61383]
[1717423875771,1.10823205,3825.9,3825.8,2.61383]
[1717423875977,0.54319641,3825.9,3825.8,2.61383]
[1717423876244,1.56168628,3825.9,3825.8,2.61383]
[1717423876523,2.37541248,3826.2,3826.0,2.61369]
[1717423876740,0.5432807,3826.1,3826.0,2.61369]
[1717423876888,0.5432807,3826.4,3826.2,2.61355]
[1717423877079,0.5432807,3826.5,3826.4,2.61342]
[1717423877276,1.1082167,3826.5,3826.4,2.61342]
[1717423877501,2.10496698,3826.8,3826.4,8.52784]
[1717423877833,0.5432807,3827.0,3826.6,2.61328]
[1717423878031,0.56486157,3827.0,3826.6,4.48028]
[1717423878332,0.56486157,3827.0,3826.8,2.61314]
[1717423878333,2.10496698,3827.0,3826.8,2.61314]
[1717423878626,2.10496698,3827.0,3826.9,0.55]
[1717423878944,2.10496698,3827.1,3827.0,2.61301]
[1717423879235,0.56486465,3827.1,3827.0,2.61301]
[1717423879548,0.54354368,3827.1,3827.0,2.61301]
[1717423879695,1.10840833,3827.1,3827.0,2.61301]
[1717423880030,1.10840833,3827.1,3827.0,2.9191138]
[1717423880031,2.10581647,3827.1,3827.0,2.9191138]
[1717423880213,0.54354368,3827.1,3827.0,2.9191138]
[1717423880404,0.54354368,3827.1,3827.0,2.61301]
[1717423880732,1.10838791,3827.1,3827.0,2.61301]
[1717423881163,0.54354368,3827.1,3827.0,2.61301]
[1717423881431,0.54354368,3827.1,3827.0,4.48001]
[1717423881639,0.54354368,3827.2,3827.0,4.48001]
[1717423881862,1.56248602,3827.3,3827.1,9.457891]
[1717423882143,1.08496826,3828.4,3828.3,2.61212]
[1717423882442,2.64768446,3828.6,3828.3,2.61212]
[1717423882620,1.5627162,3828.5,3828.3,2.61212]
[1717423883159,2.64768446,3828.6,3828.3,2.61212]
[1717423883318,1.08496826,3828.6,3828.3,2.61212]
[1717423883499,2.64768446,3828.7,3828.3,2.61212]
[1717423884344,2.64768583,3828.6,3828.3,2.61212]
[1717423884495,1.08496826,3828.5,3828.3,2.61212]
[1717423884838,1.08496826,3828.4,3828.3,2.61212]
[1717423885535,1.08496826,3828.4,3827.9,2.61237]
[1717423885838,1.08496826,3828.3,3827.9,2.61237]
[1717423887434,1.08496826,3828.5,3827.9,2.61237]
[1717423887753,1.48550639,3828.5,3827.9,2.61237]
[1717423888946,3.68393922,3828.4,3827.2,7.41]
[1717423889113,6.60435226,3828.4,3827.5,2.61265]
[1717423889295,0.66565191,3828.3,3827.5,2.61265]
[1717423889504,2.92041304,3828.0,3827.5,2.61265]
[1717423889897,1.08496826,3827.9,3827.5,2.61265]
[1717423890829,0.81436018,3827.8,3827.5,2.61265]
[1717423891147,0.81436018,3827.7,3827.5,2.61265]
[1717423892309,0.81436018,3827.6,3827.1,4.4799]
[1717423893110,0.81436018,3827.6,3827.4,2.61269]
[1717423893641,0.81436018,3827.7,3827.5,1.867]
[1717423894947,0.81436018,3827.8,3827.6,2.6126]
[1717423895154,0.81436018,3827.9,3827.6,2.6126]
[1717423895513,0.81436018,3828.0,3827.6,2.6126]
[1717423895957,0.81436018,3827.9,3827.6,2.6126]
[1717423897062,0.81436018,3828.0,3827.6,2.6126]
[1717423898069,0.81436018,3827.9,3827.6,2.6126]
[1717423898367,0.81436018,3828.0,3827.6,2.6126]
[1717423898860,0.81436018,3827.8,3827.6,2.6126]
[1717423899350,0.81436018,3827.7,3827.2,2.61282]
[1717423900515,0.81436018,3827.8,3827.2,3.52681462]
[1717423900970,0.81436018,3827.8,3827.5,2.61265]
[1717423901446,0.81436018,3827.9,3827.5,2.61265]
[1717423901759,0.81436018,3827.9,3827.5,4.47965]
[1717423901973,0.81436018,3828.0,3827.5,4.47965]
[1717423902167,0.81436018,3828.0,3827.8,2.61244]
[1717423902331,1.37912736,3828.1,3827.8,2.61244]
[1717423902659,0.81436018,3828.0,3827.8,2.61244]
[1717423902860,1.37912736,3828.1,3827.8,2.61244]
[1717423903219,2.94169821,3828.1,3827.8,2.61244]
[1717423903422,0.81436018,3828.1,3827.8,2.61244]
[1717423904325,2.37693385,3828.1,3827.8,2.61244]
[1717423904956,1.56257367,3828.1,3827.8,2.61244]
[1717423905320,2.12733323,3828.0,3827.8,2.61244]
[1717423905861,1.56257367,3828.1,3827.8,2.61244]
[1717423906229,1.56257367,3827.9,3827.8,2.61244]
[1717423906816,0.81436018,3828.1,3827.8,2.61244]
[1717423907064,1.37909434,3828.1,3827.8,2.61244]
[1717423907271,0.81436018,3828.0,3827.8,2.61244]
[1717423908338,0.81436018,3828.0,3827.8,3.060384]
[1717423909647,1.37909434,3828.1,3827.8,3.060384]
[1717423909961,1.37909434,3828.2,3828.0,2.61233]
[1717423910146,0.81436018,3828.2,3828.0,2.61233]
[1717423910522,0.79982918,3828.2,3828.0,2.61233]
[1717423910720,1.364551,3828.2,3828.0,2.61233]
[1717423911047,2.61157,3829.2,3828.2,2.61219]
[1717423911048,0.56472182,3828.3,3828.2,2.61219]
[1717423911376,0.56470971,3828.4,3828.2,2.61219]
[1717423912353,0.56470971,3828.5,3828.2,2.61219]
[1717423912547,1.64967797,3828.5,3828.2,2.61219]
[1717423912858,0.56470971,3828.4,3828.2,2.61219]
[1717423913376,0.56470971,3828.4,3828.3,1.867]
[1717423913578,0.56470971,3828.4,3828.3,4.695619]
[1717423913883,1.56287674,3828.5,3828.4,2.61205]
[1717423914057,0.56470971,3828.5,3828.4,2.61205]
[1717423914257,1.56287674,3828.6,3828.4,2.61205]
[1717423914598,1.56287674,3828.7,3828.6,2.61192]
[1717423914890,1.64957218,3829.0,3828.6,2.61192]
[1717423915069,0.56460392,3828.9,3828.6,2.61192]
[1717423915265,0.56460392,3828.9,3828.8,2.61178]
[1717423916381,1.64957218,3828.9,3828.8,2.61178]
[1717423917061,0.56460392,3828.9,3828.8,2.61178]
[1717423917689,0.56462507,3828.9,3828.8,3.059658]
[1717423917997,0.56462507,3828.9,3828.8,2.61178]
[1717423918342,1.64959333,3828.9,3828.8,2.61178]
[1717423918943,0.56462507,3828.9,3828.8,2.61178]
[1717423919385,1.64959333,3828.9,3828.8,2.61178]
[1717423921962,0.56462507,3828.9,3828.8,2.61178]
[1717423922460,0.75697903,3828.9,3828.1,7.41]
[1717423922757,0.81689631,3828.2,3828.0,2.61226]
[1717423922964,1.36153044,3828.2,3828.0,2.61226]
[1717423923192,0.56462507,3828.2,3828.0,2.61226]
[1717423923405,2.19532248,3828.3,3828.0,2.61226]
[1717423923700,2.19532248,3828.3,3827.6,2.61254]
[1717423923701,0.56462507,3828.2,3827.6,2.61254]
[1717423923994,2.65171123,3827.8,3827.6,2.61254]
[1717423924153,1.36177085,3827.8,3827.6,2.61254]
[1717423924349,1.92639592,3827.7,3827.6,2.61254]
[1717423924562,0.56462507,3827.7,3827.6,2.61254]
[1717423924745,1.92646597,3827.7,3827.6,2.61254]
[1717423924949,0.56462507,3827.7,3827.6,2.61254]
[1717423925160,0.56462507,3827.9,3827.6,2.61254]
[1717423925989,0.56462507,3827.8,3827.6,2.61254]
[1717423926192,0.21988342,3827.7,3826.9,7.41]
[1717423926433,0.21988342,3827.7,3826.7,12.23]
[1717423926434,1.08956095,3827.0,3826.8,2.61309]
[1717423926988,0.8171479,3826.9,3826.8,2.61309]
[1717423928439,0.54476776,3826.9,3826.8,3.16309]
[1717423928735,0.54476776,3826.9,3826.8,4.261536]
[1717423928958,0.8171479,3827.0,3826.8,4.261536]
[1717423929172,0.8171479,3827.0,3826.9,0.55]
[1717423929318,0.8171479,3827.1,3827.0,2.61301]
[1717423929648,0.8171479,3827.1,3827.0,4.0371646]
[1717423929994,0.54476683,3827.1,3827.0,4.0371646]
[1717423930396,1.08956095,3827.5,3827.0,4.0371646]
[1717423930397,0.8171479,3827.2,3827.0,4.0371646]
[1717423931040,0.8171479,3827.1,3827.0,4.0371646]
[1717423931694,0.8171479,3827.1,3827.0,3.4871646]
[1717423931895,0.8171479,3827.1,3827.0,2.61301]
[1717423932540,1.6544028,3827.2,3827.0,2.61301]
[1717423932753,1.08956095,3827.2,3827.0,2.61301]
[1717423932956,1.08956095,3827.1,3827.0,2.61301]
[1717423933941,2.65154575,3827.2,3827.0,2.61301]
[1717423934141,1.08956095,3827.2,3827.0,2.61301]
[1717423934313,0.81682935,3827.1,3827.0,3.1708556]
[1717423935024,1.08956095,3827.2,3827.0,3.1708556]
[1717423935551,1.08956095,3827.3,3827.1,1.867]
[1717423935727,1.08956095,3827.3,3827.2,2.85535456]
[1717423935912,1.08956095,3827.4,3827.2,2.85535456]
[1717423936112,1.08956095,3827.4,3827.3,1.867]
[1717423936360,1.65437116,3827.4,3827.3,1.867]
[1717423936914,0.56481021,3827.4,3827.3,1.867]
[1717423937272,0.56481021,3827.4,3827.2,2.61287]
[1717423937273,2.12679501,3827.4,3827.2,2.61287]
[1717423937437,3.48851193,3827.3,3827.2,2.61287]
[1717423938029,3.48872454,3827.3,3827.2,2.61287]
[1717423939035,0.56481021,3827.3,3826.8,2.6131]
[1717423939327,0.81698234,3826.9,3826.8,2.6131]
[1717423939527,0.56481021,3826.9,3826.8,2.6131]
[1717423940141,1.92644744,3826.9,3826.8,2.6131]
[1717423940766,1.92644744,3826.9,3826.8,3.17441]
[1717423940931,0.81698118,3826.9,3826.8,5.04141]
[1717423941406,0.54456686,3826.9,3826.8,5.04141]
[1717423942131,0.81698118,3827.0,3826.8,7.45451]
[1717423942528,1.38181926,3827.1,3827.0,2.61301]
[1717423942767,0.81698118,3827.1,3827.0,3.963452]
[1717423943078,0.81698118,3827.2,3827.0,3.963452]
[1717423943279,0.81698118,3827.2,3827.1,1.867]
[1717423944433,1.36163723,3827.6,3827.1,10.78094]
[1717423944434,0.81698118,3827.5,3827.1,10.78094]
[1717423944760,0.81698118,3827.6,3827.3,2.6128]
[1717423944963,0.81698118,3827.8,3827.5,4.47967]
[1717423945174,1.38169565,3827.8,3827.5,4.47967]
[1717423945380,1.56232249,3827.8,3827.7,2.61253]
[1717423945750,2.12703696,3827.8,3827.7,2.61253]
[1717423947499,2.94459071,3827.8,3827.7,2.61253]
[1717423947683,2.12753493,3827.8,3827.7,2.61253]
[1717423948002,0.56471447,3827.8,3827.7,2.61253]
[1717423948357,2.94466122,3827.8,3827.7,2.61253]
[1717423948555,2.37994675,3827.8,3827.7,3.1052797]
[1717423949065,0.56471447,3827.8,3827.7,3.1052797]
[1717423949274,1.38182905,3827.8,3827.7,3.1052797]
[1717423949465,0.56471447,3827.8,3827.7,3.1052797]
[1717423950698,0.56473496,3827.8,3827.7,3.1052797]
[1717423952103,0.56474117,3827.8,3827.7,3.1052797]
[1717423952257,0.56474117,3827.8,3827.7,4.47953]
[1717423953364,1.65404941,3827.8,3827.7,4.47953]
[1717423954495,0.56474117,3827.8,3827.7,4.47953]
[1717423955195,0.56474117,3827.8,3827.7,2.61253]
[1717423955498,1.92667298,3827.8,3827.3,4.47977]
[1717423955699,1.92667298,3827.8,3827.3,2.61277]
[1717423955700,1.08967403,3827.5,3827.3,2.61277]
[1717423955858,1.6544152,3827.4,3827.3,2.61277]
[1717423957375,0.56474117,3827.4,3827.3,2.61277]
[1717423957564,1.38194949,3827.4,3827.3,2.61277]
[1717423957766,1.38194949,3827.4,3827.3,3.115747]
[1717423957965,0.56474117,3827.4,3827.3,3.115747]
[1717423958409,2.67311598,3827.4,3827.3,3.665747]
[1717423958578,2.10837481,3827.4,3827.3,3.665747]
[1717423958780,1.36193181,3828.0,3827.3,3.665747]
[1717423958781,1.90706269,3828.7,3828.0,2.6123]
[1717423958959,2.07392143,3828.4,3828.0,2.6123]
[1717423959160,0.56473117,3828.3,3828.0,2.6123]
[1717423959403,0.5647335,3828.2,3828.0,2.6123]
[1717423959608,0.5647335,3828.1,3828.0,2.6123]
[1717423960616,0.5647335,3828.1,3827.6,2.61254]
[1717423960811,1.08993832,3827.7,3827.6,2.61254]
[1717423961107,1.9271564,3827.7,3827.6,2.61254]
[1717423961617,0.5647335,3827.7,3827.6,2.61254]
[1717423962065,1.92731856,3827.7,3827.6,2.61254]
[1717423962265,0.5647335,3827.7,3827.6,2.61254]
[1717423962800,0.5647335,3827.7,3827.6,4.47954]
[1717423962962,1.65502084,3827.7,3827.6,4.927494]
[1717423963363,1.65520656,3827.7,3827.6,4.927494]
[1717423964168,1.65520656,3827.7,3827.6,4.47954]
[1717423964392,0.5647335,3827.7,3827.6,4.47954]
[1717423965299,1.92759249,3827.7,3827.6,4.47954]
[1717423965496,0.5647335,3827.7,3827.6,4.47954]
[1717423965977,1.90901892,3828.4,3827.6,4.47954]
[1717423966162,0.56478552,3827.7,3827.6,4.47954]
[1717423966369,1.928271,3827.7,3827.6,4.47954]
[1717423966615,0.56478552,3827.7,3827.6,2.61254]
[1717423968525,0.56478552,3827.7,3827.6,4.47954]
[1717423969500,0.56478573,3827.7,3827.6,4.47954]
[1717423970247,0.56478573,3827.7,3827.6,2.61254]
[1717423972484,1.63741382,3827.8,3827.6,2.61254]
[1717423972683,0.56479058,3827.7,3827.6,2.61254]
[1717423973697,1.63764106,3827.7,3827.6,2.61254]
[1717423973930,0.56480847,3827.7,3827.6,2.61254]
[1717423974633,0.56480847,3827.7,3827.3,2.6128]
[1717423974819,1.63763952,3827.6,3827.3,2.6128]
[1717423975124,0.56480847,3827.5,3827.3,2.6128]
[1717423975348,0.56480847,3827.4,3827.3,2.6128]
[1717423980219,0.5648191,3827.4,3827.3,2.6128]
[1717423982338,0.5648191,3827.4,3827.3,3.30997]
[1717423982535,1.9286387,3827.4,3827.3,3.30997]
[1717423985737,1.92859774,3827.4,3827.3,3.30997]
[1717423987188,1.92857283,3827.4,3827.3,3.30997]
[1717423987803,1.92857283,3827.4,3827.3,5.92277]
[1717423988084,0.56475323,3827.4,3827.3,6.47277]
[1717423988590,1.65640885,3827.4,3827.3,6.47277]
[1717423989478,0.56475323,3827.4,3827.3,6.47277]
[1717423990074,1.65640885,3827.4,3827.3,6.47277]
[1717423991150,1.65638273,3827.4,3827.3,6.47277]
[1717423991359,2.12671416,3827.4,3827.3,6.47277]
[1717423991681,2.94556614,3827.4,3827.3,6.47277]
[1717423991867,2.12671416,3827.4,3827.3,6.47277]
[1717423992266,1.09165562,3827.5,3827.3,6.47277]
[1717423992448,1.65636723,3827.4,3827.3,6.47277]
[1717423992657,1.65636723,3827.4,3827.3,8.33977]
[1717423992878,0.56471161,3827.4,3827.3,8.33977]
[1717423993190,2.12670868,3827.4,3827.3,8.33977]
[1717423994021,2.94552844,3827.4,3827.3,8.33977]
[1717423994393,2.12670868,3827.4,3827.3,8.33977]
[1717423995693,1.09165562,3827.5,3827.3,13.70357]
[1717423995980,1.36472159,3828.1,3828.0,2.61233]
[1717423996183,1.36472159,3828.1,3828.0,4.47933]
[1717423997085,1.63766591,3828.3,3828.1,2.61226]
[1717423997293,1.63766591,3828.4,3828.1,2.61226]
[1717423998772,1.90983483,3828.7,3828.4,2.61205]
[1717424001364,1.63669629,3828.5,3828.4,2.61205]
[1717424001643,1.63669629,3828.6,3828.4,2.61205]
[1717424001977,1.56215589,3828.5,3828.4,2.61205]
[1717424002308,1.56215589,3828.5,3828.4,3.651255]
[1717424002488,1.36379392,3828.6,3828.4,3.651255]
[1717424002799,1.36379392,3828.7,3828.6,2.61192]
[1717424002953,1.36379392,3828.8,3828.6,5.86482]
[1717424003264,1.36379392,3829.0,3828.8,2.61178]
[1717424003613,1.56233136,3829.2,3829.0,2.61164]
[1717424003614,1.36379392,3829.2,3829.0,2.61164]
[1717424003754,1.56233136,3829.4,3829.2,2.61151]
[1717424003954,1.63669629,3829.5,3829.2,2.61151]
[1717424003955,1.56211446,3829.3,3829.2,2.61151]
[1717424004295,1.56211446,3829.4,3829.2,2.61151]
[1717424005054,1.56211446,3829.5,3829.2,2.61151]
[1717424005282,1.36207925,3829.3,3829.2,2.61151]
[1717424005894,1.08970231,3829.3,3829.2,2.61151]
[1717424006203,1.08970231,3829.4,3829.2,3.059361]
[1717424006618,0.81692971,3829.4,3829.2,3.059361]
[1717424006967,0.5446481,3829.3,3829.2,3.059361]
[1717424007168,0.5446481,3829.4,3829.2,4.926361]
[1717424007364,0.5446481,3829.4,3829.3,0.4926361]
[1717424007660,0.81692971,3829.5,3829.4,2.61137]
[1717424007873,0.81692971,3829.6,3829.4,2.61137]
[1717424008218,0.54413098,3829.5,3829.4,2.61137]
[1717424008391,0.54413098,3829.6,3829.4,2.61137]
[1717424008722,0.54413098,3829.6,3829.5,0.49710061]
[1717424008937,0.54413098,3829.6,3829.5,1.867]
[1717424009782,0.54413098,3829.7,3829.6,2.61123]
[1717424010395,0.54413098,3829.9,3829.6,2.61123]
[1717424010575,0.54413098,3830.0,3829.8,2.6111]
[1717424010779,0.54413098,3830.2,3830.0,2.61096]
[1717424010980,1.08970231,3830.6,3830.4,2.61069]
[1717424010981,0.54413098,3830.6,3830.4,2.61069]
[1717424011209,0.54413098,3830.7,3830.4,2.61069]
[1717424011419,0.54413098,3830.7,3830.6,2.61055]
[1717424011630,0.54413098,3830.8,3830.6,2.61055]
[1717424012183,0.54413098,3830.9,3830.6,2.61055]
[1717424012382,0.54413098,3831.2,3830.8,2.61042]
[1717424013328,0.54413098,3831.4,3830.8,2.61042]
[1717424013534,0.54413098,3831.3,3830.8,2.61042]
[1717424014112,3.00573098,3831.5,3830.8,2.61042]
[1717424015104,2.4616,3831.5,3830.8,2.61042]
[1717424016327,0.3005731,3831.4,3830.8,2.61042]
[1717424016825,0.54413098,3831.6,3831.2,2.6101]
[1717424017142,0.54413098,3831.8,3831.2,2.6101]
[1717424017298,0.54413098,3831.9,3831.2,2.6101]
[1717424017514,0.54413098,3832.0,3831.6,2.60985]
[1717424017806,0.54413098,3832.1,3831.6,2.60985]
[1717424018004,2.2594,3832.2,3831.6,2.60985]
[1717424018312,2.5397531,3832.2,3831.6,2.60985]
[1717424019435,0.2803531,3832.2,3831.6,2.60985]
[1717424019635,2.4179,3832.6,3831.6,2.60985]
[1717424020456,2.4179,3832.6,3831.4,4.2135]
[1717424020457,2.4179,3832.6,3831.9,2.60961]
[1717424023417,1.56292081,3833.2,3831.9,2.60961]
[1717424023418,1.56292081,3833.2,3831.9,1.867]
[1717424023644,2.3235,3833.3,3832.0,3.0214]
[1717424023859,2.3235,3833.3,3832.1,3.0]
[1717424024056,2.3235,3833.3,3832.1,3.78884]
[1717424024241,3.64563922,3833.3,3832.5,2.60921]
[1717424024639,3.93095922,3833.2,3832.1,2.60952]
[1717424024851,2.2628,3833.1,3832.1,2.60952]
[1717424025037,1.32213922,3833.0,3832.1,2.60952]
[1717424025254,0.7756867,3832.9,3832.1,2.60952]
[1717424025476,2.09782592,3832.9,3832.1,2.60952]
[1717424028269,2.3463,3832.7,3831.7,5.60976]
[1717424028414,1.32213922,3832.6,3831.7,5.60976]
[1717424028619,0.29050334,3832.5,3831.7,2.60976]
[1717424030154,0.8546848,3832.5,3831.7,2.60976]
[1717424030356,0.29050334,3832.5,3831.7,2.60976]
[1717424031461,0.56415979,3832.5,3831.7,2.60976]
[1717424031818,2.12722104,3832.5,3831.7,2.60976]
[1717424032016,2.12685157,3832.5,3831.7,2.60976]
[1717424032250,2.12685157,3832.4,3831.7,2.60976]
[1717424032451,1.56269145,3832.4,3831.7,2.60976]
[1717424033169,1.56269145,3832.3,3831.7,2.60976]
[1717424033324,2.12685157,3832.3,3831.7,2.60976]
[1717424033527,1.56269145,3832.3,3831.7,2.60976]
[1717424033963,1.56269145,3832.3,3832.0,2.60957]
[1717424034187,0.54413098,3833.6,3832.0,4.96667]
[1717424034188,1.56269145,3832.2,3832.0,4.96667]
[1717424034464,1.56269145,3832.3,3832.0,5.650037]
[1717424034654,1.56269145,3832.7,3832.3,2.60935]
[1717424035344,2.3158,3833.2,3832.3,2.60935]
[1717424035345,2.1267723,3832.6,3832.3,2.60935]
[1717424035675,1.56269145,3832.6,3832.3,2.60935]
[1717424035826,1.56269145,3832.7,3832.3,2.60935]
[1717424036228,2.1267723,3832.6,3832.3,2.60935]
[1717424036465,1.56269145,3832.6,3832.3,2.60935]
[1717424037031,1.56269145,3832.6,3832.3,3.15335246]
[1717424037265,2.1267723,3832.5,3832.3,3.15335246]
[1717424037777,1.56269145,3832.6,3832.3,3.15335246]